[Event "Live Chess"]
[Site "Chess.com"]
[Date "2023.05.21"]
[Round "-"]
[White "educatedlad"]
[Black "BJAW87"]
[Result "0-1"]
[WhiteElo "1607"]
[BlackElo "1438"]
[TimeControl "300"]
[EndTime "16:06:51 PDT"]
[Termination "BJAW87 won by resignation"]

1. e4 {[%clk 0:04:59.3]} 1... c6 {[%clk 0:04:59]} 2. Nc3 {[%clk 0:04:58.6]} 2...
d5 {[%clk 0:04:58.9]} 3. d4 {[%clk 0:04:58.1]} 3... dxe4 {[%clk 0:04:58.5]} 4.
Nxe4 {[%clk 0:04:56.5]} 4... Bf5 {[%clk 0:04:57.8]} 5. Ng3 {[%clk 0:04:55.2]}
5... Bg6 {[%clk 0:04:57.4]} 6. h4 {[%clk 0:04:54.4]} 6... h5 {[%clk 0:04:19]} 7.
Be3 {[%clk 0:04:50.9]} 7... Qa5+ {[%clk 0:04:14.3]} 8. c3 {[%clk 0:04:49]} 8...
Nf6 {[%clk 0:04:08.1]} 9. Bd3 {[%clk 0:04:45.7]} 9... Bxd3 {[%clk 0:03:57.4]}
10. Qxd3 {[%clk 0:04:45.6]} 10... e6 {[%clk 0:03:55]} 11. Ne4 {[%clk 0:04:28.1]}
11... Nbd7 {[%clk 0:03:52.9]} 12. Ne2 {[%clk 0:03:52.6]} 12... O-O-O {[%clk
0:03:45.3]} 13. O-O {[%clk 0:03:48]} 13... Ne5 {[%clk 0:03:42.8]} 14. Qc2 {[%clk
0:03:44.2]} 14... Neg4 {[%clk 0:03:40.8]} 15. Nxf6 {[%clk 0:03:40.6]} 15... Nxf6
{[%clk 0:03:31.2]} 16. Bg5 {[%clk 0:03:39.4]} 16... Be7 {[%clk 0:03:29.5]} 17.
b4 {[%clk 0:03:32.1]} 17... Qc7 {[%clk 0:03:25.2]} 18. Bf4 {[%clk 0:03:29.2]}
18... Bd6 {[%clk 0:03:22.5]} 19. g3 {[%clk 0:03:25.6]} 19... Nd5 {[%clk
0:03:14.7]} 20. Bxd6 {[%clk 0:03:23.2]} 20... Qxd6 {[%clk 0:03:14.6]} 21. a4
{[%clk 0:03:17.6]} 21... f5 {[%clk 0:03:05.9]} 22. Rfb1 {[%clk 0:03:09.4]} 22...
f4 {[%clk 0:02:57.6]} 23. Kg2 {[%clk 0:02:58.4]} 23... fxg3 {[%clk 0:02:43.8]}
24. Nxg3 {[%clk 0:02:58.3]} 24... Rhf8 {[%clk 0:02:27.9]} 25. Ne4 {[%clk
0:02:53.1]} 25... Qf4 {[%clk 0:02:19.9]} 26. Qd3 {[%clk 0:02:45.8]} 26... Qg4+
{[%clk 0:02:16]} 27. Ng3 {[%clk 0:02:40.1]} 27... Nf4+ {[%clk 0:02:14.5]} 28.
Kh2 {[%clk 0:02:35.6]} 28... Nxd3 {[%clk 0:02:14.4]} 29. Rd1 {[%clk 0:02:30.8]}
29... Rxf2+ {[%clk 0:02:12.7]} 0-1

[Event "Live Chess"]
[Site "Chess.com"]
[Date "2023.05.21"]
[Round "-"]
[White "gmnorfolk"]
[Black "Biranidun"]
[Result "0-1"]
[WhiteElo "2110"]
[BlackElo "2686"]
[TimeControl "300"]
[EndTime "16:07:00 PDT"]
[Termination "Biranidun won by resignation"]

1. d4 {[%clk 0:04:57.4]} 1... Nf6 {[%clk 0:04:58.9]} 2. c4 {[%clk 0:04:53.4]}
2... g6 {[%clk 0:04:58.1]} 3. Nc3 {[%clk 0:04:52]} 3... Bg7 {[%clk 0:04:57.9]}
4. e4 {[%clk 0:04:50.6]} 4... d6 {[%clk 0:04:57.6]} 5. Be2 {[%clk 0:04:49.2]}
5... O-O {[%clk 0:04:57]} 6. Be3 {[%clk 0:04:48.7]} 6... e5 {[%clk 0:04:56.4]}
7. d5 {[%clk 0:04:47.9]} 7... Na6 {[%clk 0:04:56.1]} 8. h4 {[%clk 0:04:46.4]}
8... Nc5 {[%clk 0:04:55.7]} 9. f3 {[%clk 0:04:42.1]} 9... Nh5 {[%clk 0:04:49]}
10. g4 {[%clk 0:04:27.2]} 10... Nf4 {[%clk 0:04:44.4]} 11. Qd2 {[%clk 0:04:17]}
11... f5 {[%clk 0:04:42.5]} 12. gxf5 {[%clk 0:04:13.2]} 12... Ng2+ {[%clk
0:04:38.4]} 13. Kd1 {[%clk 0:04:07.2]} 13... Nxe3+ {[%clk 0:04:38.3]} 14. Qxe3
{[%clk 0:04:06.4]} 14... gxf5 {[%clk 0:04:38.2]} 15. Kc2 {[%clk 0:04:01.8]}
15... Kh8 {[%clk 0:04:29.8]} 16. h5 {[%clk 0:03:57.6]} 16... fxe4 {[%clk
0:04:23.8]} 17. fxe4 {[%clk 0:03:51.2]} 17... Rf4 {[%clk 0:04:23.4]} 18. h6
{[%clk 0:03:46.5]} 18... Bf6 {[%clk 0:04:22.6]} 19. Nh3 {[%clk 0:03:33.4]} 19...
Bxh3 {[%clk 0:04:19.9]} 20. Rxh3 {[%clk 0:03:28.8]} 20... Bg5 {[%clk 0:04:14.6]}
21. Rg3 {[%clk 0:03:24.2]} 21... Bxh6 {[%clk 0:04:05.7]} 22. Rh1 {[%clk
0:03:10.3]} 22... Rh4 {[%clk 0:04:02.7]} 23. Qxh6 {[%clk 0:02:58.9]} 23... Rxh6
{[%clk 0:04:01.3]} 24. Rxh6 {[%clk 0:02:58.2]} 24... Qe7 {[%clk 0:03:54.1]} 25.
Rgh3 {[%clk 0:02:20.4]} 25... Rg8 {[%clk 0:03:50.1]} 26. b4 {[%clk 0:02:07.6]}
26... Nd7 {[%clk 0:03:47.3]} 27. Re6 {[%clk 0:01:52.1]} 27... Qf7 {[%clk
0:03:41.8]} 28. Rf3 {[%clk 0:01:50.6]} 28... Qg7 {[%clk 0:03:36.4]} 29. Rf2
{[%clk 0:01:38.6]} 29... Rf8 {[%clk 0:03:34.5]} 30. Rh2 {[%clk 0:01:29.8]} 30...
Nf6 {[%clk 0:03:28.9]} 31. Rf2 {[%clk 0:01:16.4]} 31... a6 {[%clk 0:03:26.9]}
32. Bd3 {[%clk 0:01:11.4]} 32... Kg8 {[%clk 0:03:23.7]} 33. Kb3 {[%clk 0:01:07]}
33... Nh5 {[%clk 0:03:18.9]} 34. Rxf8+ {[%clk 0:00:59.5]} 34... Kxf8 {[%clk
0:03:18.8]} 35. Be2 {[%clk 0:00:57.2]} 35... Nf4 {[%clk 0:03:18]} 0-1

[Event "Live Chess"]
[Site "Chess.com"]
[Date "2023.05.21"]
[Round "-"]
[White "Man-Del-Brot"]
[Black "JoshMcK"]
[Result "0-1"]
[WhiteElo "1064"]
[BlackElo "1518"]
[TimeControl "300"]
[EndTime "16:07:05 PDT"]
[Termination "JoshMcK won by checkmate"]

1. g4 {[%clk 0:04:56.6]} 1... e5 {[%clk 0:04:55.5]} 2. h4 {[%clk 0:04:54.4]}
2... d5 {[%clk 0:04:54.3]} 3. g5 {[%clk 0:04:53.6]} 3... h6 {[%clk 0:04:52.4]}
4. d3 {[%clk 0:04:52.1]} 4... hxg5 {[%clk 0:04:49.4]} 5. Bxg5 {[%clk 0:04:49.3]}
5... f6 {[%clk 0:04:48.6]} 6. Bd2 {[%clk 0:04:44.7]} 6... g5 {[%clk 0:04:44.1]}
7. Bg2 {[%clk 0:04:40.2]} 7... Rxh4 {[%clk 0:04:39]} 8. Rxh4 {[%clk 0:04:36]}
8... gxh4 {[%clk 0:04:38.9]} 9. Nc3 {[%clk 0:04:29.4]} 9... Be6 {[%clk
0:04:33.5]} 10. e4 {[%clk 0:04:13.6]} 10... d4 {[%clk 0:04:30.4]} 11. Nce2
{[%clk 0:04:06.5]} 11... Nc6 {[%clk 0:04:26.7]} 12. f4 {[%clk 0:04:05.1]} 12...
Qd7 {[%clk 0:04:24]} 13. fxe5 {[%clk 0:03:39.4]} 13... fxe5 {[%clk 0:04:22]} 14.
Nf3 {[%clk 0:03:38.1]} 14... Be7 {[%clk 0:04:19]} 15. Neg1 {[%clk 0:03:28.6]}
15... O-O-O {[%clk 0:04:16.5]} 16. Qe2 {[%clk 0:03:27.5]} 16... h3 {[%clk
0:04:14.9]} 17. Bh1 {[%clk 0:03:24]} 17... Nf6 {[%clk 0:03:58.2]} 18. O-O-O
{[%clk 0:03:21.9]} 18... Ng4 {[%clk 0:03:47.6]} 19. Bg5 {[%clk 0:03:10.5]} 19...
Bxg5+ {[%clk 0:03:39.8]} 20. Nxg5 {[%clk 0:03:08.4]} 20... h2 {[%clk 0:03:34.7]}
21. Bf3 {[%clk 0:03:03.9]} 21... hxg1=Q {[%clk 0:03:32.8]} 22. Rxg1 {[%clk
0:03:00.6]} 22... Ne3 {[%clk 0:03:31.4]} 23. Nxe6 {[%clk 0:02:52.6]} 23... Qxe6
{[%clk 0:03:29.7]} 24. Kb1 {[%clk 0:02:24]} 24... Rg8 {[%clk 0:03:21.7]} 25.
Rxg8+ {[%clk 0:02:20.4]} 25... Qxg8 {[%clk 0:03:21.6]} 26. b3 {[%clk 0:02:12]}
26... Qg1+ {[%clk 0:03:10]} 27. Kb2 {[%clk 0:02:09.1]} 27... b6 {[%clk
0:02:48.8]} 28. Bh5 {[%clk 0:02:05.4]} 28... Qf1 {[%clk 0:02:41.1]} 29. Qh2
{[%clk 0:01:57.7]} 29... Nd1+ {[%clk 0:02:29.1]} 30. Ka3 {[%clk 0:01:54.6]}
30... Nc3 {[%clk 0:02:19.6]} 31. Bg4+ {[%clk 0:01:25.4]} 31... Kb7 {[%clk
0:02:17.3]} 32. Bh3 {[%clk 0:01:23.1]} 32... Qc1# {[%clk 0:02:15.4]} 0-1

[Event "Live Chess"]
[Site "Chess.com"]
[Date "2023.05.21"]
[Round "-"]
[White "AbilifyXL"]
[Black "manthanit"]
[Result "1-0"]
[WhiteElo "1965"]
[BlackElo "1054"]
[TimeControl "300"]
[EndTime "16:07:14 PDT"]
[Termination "AbilifyXL won by resignation"]

1. d4 {[%clk 0:04:58.9]} 1... e6 {[%clk 0:04:59.7]} 2. c4 {[%clk 0:04:58]} 2...
d5 {[%clk 0:04:59.3]} 3. Nc3 {[%clk 0:04:57.9]} 3... Bd7 {[%clk 0:04:47.8]} 4.
cxd5 {[%clk 0:04:57.8]} 4... exd5 {[%clk 0:04:46.6]} 5. Nxd5 {[%clk 0:04:57.2]}
5... c6 {[%clk 0:04:39.8]} 6. Nc3 {[%clk 0:04:56.3]} 6... Bb4 {[%clk 0:04:37.4]}
7. Nf3 {[%clk 0:04:54.4]} 7... Nf6 {[%clk 0:04:35.6]} 8. Bg5 {[%clk 0:04:53.4]}
8... O-O {[%clk 0:04:34.3]} 9. e4 {[%clk 0:04:52.5]} 9... Bg4 {[%clk 0:04:28.4]}
10. e5 {[%clk 0:04:51]} 10... Bxf3 {[%clk 0:04:25.2]} 11. Qxf3 {[%clk
0:04:45.6]} 11... Bxc3+ {[%clk 0:04:24.1]} 12. bxc3 {[%clk 0:04:44.3]} 12... Qd5
{[%clk 0:04:15.4]} 13. exf6 {[%clk 0:04:30.9]} 13... Re8+ {[%clk 0:04:14]} 14.
Be3 {[%clk 0:04:28.7]} 14... b6 {[%clk 0:04:02.1]} 15. Qxd5 {[%clk 0:04:27]}
15... cxd5 {[%clk 0:04:01.2]} 16. fxg7 {[%clk 0:04:26.5]} 16... Kxg7 {[%clk
0:03:59.9]} 17. Bd3 {[%clk 0:04:25.5]} 17... Nc6 {[%clk 0:03:53.1]} 18. O-O
{[%clk 0:04:23.9]} 18... Na5 {[%clk 0:03:50.2]} 19. Rfe1 {[%clk 0:04:20.3]}
19... Nc4 {[%clk 0:03:48.7]} 20. Bxc4 {[%clk 0:04:19.4]} 20... dxc4 {[%clk
0:03:47.9]} 21. Bf4 {[%clk 0:04:18.5]} 21... Re6 {[%clk 0:03:44.1]} 22. g3
{[%clk 0:04:15.8]} 22... Rae8 {[%clk 0:03:42.3]} 23. Rxe6 {[%clk 0:04:15]} 23...
Rxe6 {[%clk 0:03:41.3]} 24. Be3 {[%clk 0:04:12.8]} 24... b5 {[%clk 0:03:40.4]}
25. Rd1 {[%clk 0:04:11.7]} 25... a6 {[%clk 0:03:39.5]} 26. d5 {[%clk 0:04:11.1]}
26... Re7 {[%clk 0:03:34.4]} 27. d6 {[%clk 0:04:10.1]} 27... Rd7 {[%clk
0:03:33.7]} 28. Bc5 {[%clk 0:04:09.1]} 28... f5 {[%clk 0:03:24.6]} 29. Re1
{[%clk 0:04:08.1]} 29... Kf6 {[%clk 0:03:23.7]} 30. Re7 {[%clk 0:04:06.9]} 30...
Rxe7 {[%clk 0:03:18.6]} 31. dxe7 {[%clk 0:04:06.1]} 31... Kf7 {[%clk 0:03:16]}
32. Kg2 {[%clk 0:04:05.1]} 32... Ke8 {[%clk 0:03:15.5]} 33. Kf3 {[%clk
0:04:04.3]} 33... h5 {[%clk 0:03:15]} 34. Kf4 {[%clk 0:04:03.5]} 1-0

[Event "Live Chess"]
[Site "Chess.com"]
[Date "2023.05.21"]
[Round "-"]
[White "WilliamofOrange16th"]
[Black "CeladonFish"]
[Result "1-0"]
[WhiteElo "1845"]
[BlackElo "1126"]
[TimeControl "300"]
[EndTime "16:07:15 PDT"]
[Termination "WilliamofOrange16th won by checkmate"]

1. e4 {[%clk 0:04:57.7]} 1... d6 {[%clk 0:04:59]} 2. d4 {[%clk 0:04:49.8]} 2...
Nf6 {[%clk 0:04:57.9]} 3. Nc3 {[%clk 0:04:47.3]} 3... g6 {[%clk 0:04:56.5]} 4.
f3 {[%clk 0:04:34.4]} 4... Bg7 {[%clk 0:04:53.9]} 5. Be3 {[%clk 0:04:34]} 5...
O-O {[%clk 0:04:51.8]} 6. Qd2 {[%clk 0:04:33.4]} 6... Nc6 {[%clk 0:04:39.6]} 7.
O-O-O {[%clk 0:04:28.7]} 7... d5 {[%clk 0:04:38.3]} 8. e5 {[%clk 0:04:27]} 8...
Nh5 {[%clk 0:04:29.7]} 9. g4 {[%clk 0:04:21.3]} 9... f6 {[%clk 0:04:23.2]} 10.
gxh5 {[%clk 0:04:19.7]} 10... gxh5 {[%clk 0:04:21]} 11. Bh6 {[%clk 0:04:16.1]}
11... fxe5 {[%clk 0:04:20.1]} 12. Bxg7 {[%clk 0:04:14.4]} 12... Kxg7 {[%clk
0:04:19.6]} 13. Qg5+ {[%clk 0:04:13.2]} 13... Kh8 {[%clk 0:04:19.1]} 14. Bd3
{[%clk 0:04:03.8]} 14... e4 {[%clk 0:04:15.2]} 15. fxe4 {[%clk 0:04:02.3]} 15...
dxe4 {[%clk 0:04:14]} 16. Bxe4 {[%clk 0:03:57]} 16... Rg8 {[%clk 0:04:10.7]} 17.
Qxh5 {[%clk 0:03:52.4]} 17... Rg7 {[%clk 0:03:55.9]} 18. h3 {[%clk 0:03:41.2]}
18... Nxd4 {[%clk 0:03:52]} 19. Nge2 {[%clk 0:03:33]} 19... Nxe2+ {[%clk
0:03:44.1]} 20. Nxe2 {[%clk 0:03:30.4]} 20... Qf8 {[%clk 0:03:39.7]} 21. Rdf1
{[%clk 0:03:12.2]} 21... Qd8 {[%clk 0:03:31.5]} 22. Rhg1 {[%clk 0:03:07.6]}
22... Qg8 {[%clk 0:03:10.6]} 23. Rxg7 {[%clk 0:02:50.5]} 23... Qxg7 {[%clk
0:03:09]} 24. Rf8+ {[%clk 0:02:48.6]} 24... Qg8 {[%clk 0:03:01.6]} 25. Qxh7#
{[%clk 0:02:44.4]} 1-0

[Event "Live Chess"]
[Site "Chess.com"]
[Date "2023.05.21"]
[Round "-"]
[White "grillage"]
[Black "IgorSchukin"]
[Result "0-1"]
[WhiteElo "1847"]
[BlackElo "1751"]
[TimeControl "300"]
[EndTime "16:07:29 PDT"]
[Termination "IgorSchukin won on time"]

1. d4 {[%clk 0:04:58.5]} 1... d5 {[%clk 0:04:58.5]} 2. Nf3 {[%clk 0:04:56.3]}
2... Nf6 {[%clk 0:04:57.3]} 3. c4 {[%clk 0:04:53.9]} 3... g6 {[%clk 0:04:56.3]}
4. cxd5 {[%clk 0:04:50.9]} 4... Nxd5 {[%clk 0:04:55.1]} 5. e4 {[%clk 0:04:49.5]}
5... Nb6 {[%clk 0:04:50.9]} 6. Nc3 {[%clk 0:04:48.1]} 6... Bg7 {[%clk 0:04:50]}
7. Bb5+ {[%clk 0:04:35.8]} 7... Bd7 {[%clk 0:04:47]} 8. Be2 {[%clk 0:04:27]}
8... O-O {[%clk 0:04:44.6]} 9. O-O {[%clk 0:04:25.7]} 9... Nc6 {[%clk
0:04:42.9]} 10. d5 {[%clk 0:04:20.2]} 10... Ne5 {[%clk 0:04:40.9]} 11. Nxe5
{[%clk 0:04:16.5]} 11... Bxe5 {[%clk 0:04:39.3]} 12. Be3 {[%clk 0:04:10.5]}
12... e6 {[%clk 0:04:28.6]} 13. f4 {[%clk 0:03:47.8]} 13... Bg7 {[%clk
0:04:25.5]} 14. Qd2 {[%clk 0:03:38.9]} 14... exd5 {[%clk 0:04:21.5]} 15. Nxd5
{[%clk 0:03:34.2]} 15... Nxd5 {[%clk 0:04:18.2]} 16. Qxd5 {[%clk 0:03:26]} 16...
Bxb2 {[%clk 0:04:07.2]} 17. Rab1 {[%clk 0:03:24.7]} 17... Bg7 {[%clk 0:04:00.5]}
18. Rxb7 {[%clk 0:03:22.8]} 18... Be6 {[%clk 0:03:49.1]} 19. Qxd8 {[%clk
0:03:19.8]} 19... Rfxd8 {[%clk 0:03:47.6]} 20. a4 {[%clk 0:03:10.6]} 20... Bd4
{[%clk 0:03:41.2]} 21. Kf2 {[%clk 0:03:04.9]} 21... Bb6 {[%clk 0:03:33]} 22.
Bxb6 {[%clk 0:03:02.7]} 22... cxb6 {[%clk 0:03:28.5]} 23. Rc1 {[%clk 0:02:57.8]}
23... Bb3 {[%clk 0:03:18.9]} 24. a5 {[%clk 0:02:47.4]} 24... bxa5 {[%clk
0:03:15.7]} 25. Rxb3 {[%clk 0:02:45.8]} 25... a4 {[%clk 0:03:11.2]} 26. Ra3
{[%clk 0:02:43.3]} 26... Rd4 {[%clk 0:03:09.5]} 27. Ke3 {[%clk 0:02:40.5]} 27...
Rb4 {[%clk 0:03:07.2]} 28. Rca1 {[%clk 0:02:33.9]} 28... Rc8 {[%clk 0:03:02.8]}
29. Rxa4 {[%clk 0:02:29.9]} 29... Rc3+ {[%clk 0:02:59.4]} 30. Bd3 {[%clk
0:02:20.4]} 30... Rbb3 {[%clk 0:02:54.8]} 31. Rd4 {[%clk 0:02:17.2]} 31... Rb7
{[%clk 0:02:48.2]} 32. e5 {[%clk 0:01:58.6]} 32... Kg7 {[%clk 0:02:35.8]} 33.
Ra6 {[%clk 0:01:52]} 33... h5 {[%clk 0:02:29.5]} 34. g3 {[%clk 0:01:49.8]} 34...
Rcb3 {[%clk 0:02:14.9]} 35. e6 {[%clk 0:01:40.9]} 35... Re7 {[%clk 0:02:02.5]}
36. Re4 {[%clk 0:01:35]} 36... fxe6 {[%clk 0:01:58.2]} 37. Raxe6 {[%clk
0:01:32.8]} 37... Rxe6 {[%clk 0:01:53.6]} 38. Rxe6 {[%clk 0:01:31.7]} 38... Kf7
{[%clk 0:01:50.6]} 39. Ra6 {[%clk 0:01:29.3]} 39... h4 {[%clk 0:01:39.8]} 40.
Rxa7+ {[%clk 0:01:26.7]} 40... Kf6 {[%clk 0:01:38]} 41. gxh4 {[%clk 0:01:24.2]}
41... Rb2 {[%clk 0:01:28.4]} 42. Ra6+ {[%clk 0:01:18.2]} 42... Kf7 {[%clk
0:01:26.2]} 43. Be2 {[%clk 0:01:12.9]} 43... Rb3+ {[%clk 0:01:21.2]} 44. Kf2
{[%clk 0:01:11.8]} 44... Rh3 {[%clk 0:01:19.5]} 45. Kg2 {[%clk 0:01:07.4]} 45...
Rxh4 {[%clk 0:01:18.2]} 46. Kg3 {[%clk 0:01:02.6]} 46... Rh8 {[%clk 0:01:14.8]}
47. Bd3 {[%clk 0:00:59.6]} 47... Rg8 {[%clk 0:01:04.2]} 48. h4 {[%clk
0:00:57.7]} 48... Rd8 {[%clk 0:00:55.5]} 49. Kg4 {[%clk 0:00:55.9]} 49... Rxd3
{[%clk 0:00:53.5]} 50. Rc6 {[%clk 0:00:37.2]} 50... Rd5 {[%clk 0:00:47.6]} 51.
Rc7+ {[%clk 0:00:24.2]} 51... Kf6 {[%clk 0:00:45.4]} 52. Ra7 {[%clk 0:00:18.9]}
52... Rc5 {[%clk 0:00:39.1]} 53. Ra6+ {[%clk 0:00:17.8]} 53... Kg7 {[%clk
0:00:37.7]} 54. Re6 {[%clk 0:00:16.5]} 54... Kf7 {[%clk 0:00:35.7]} 55. Re5
{[%clk 0:00:15.6]} 55... Rc1 {[%clk 0:00:31.8]} 56. h5 {[%clk 0:00:12.1]} 56...
Rg1+ {[%clk 0:00:29.6]} 57. Kh4 {[%clk 0:00:10]} 57... Rh1+ {[%clk 0:00:27.9]}
58. Kg3 {[%clk 0:00:09]} 58... gxh5 {[%clk 0:00:24.8]} 59. Kg2 {[%clk
0:00:02.8]} 59... Rh4 {[%clk 0:00:23.1]} 60. Kg3 {[%clk 0:00:02.4]} 60... Rg4+
{[%clk 0:00:21.5]} 61. Kf3 {[%clk 0:00:00.2]} 61... Kg6 {[%clk 0:00:17.7]} 0-1

[Event "Live Chess"]
[Site "Chess.com"]
[Date "2023.05.21"]
[Round "-"]
[White "Long1968"]
[Black "LutherSullivan"]
[Result "0-1"]
[WhiteElo "1209"]
[BlackElo "2067"]
[TimeControl "300"]
[EndTime "16:07:44 PDT"]
[Termination "LutherSullivan won on time"]

1. e4 {[%clk 0:04:57.1]} 1... g6 {[%clk 0:04:58.4]} 2. d4 {[%clk 0:04:53.4]}
2... Bg7 {[%clk 0:04:57.9]} 3. Nc3 {[%clk 0:04:50.3]} 3... c6 {[%clk 0:04:55.6]}
4. Bc4 {[%clk 0:04:46]} 4... e6 {[%clk 0:04:53.4]} 5. Nf3 {[%clk 0:04:37.3]}
5... d5 {[%clk 0:04:51.6]} 6. exd5 {[%clk 0:04:32.9]} 6... exd5 {[%clk
0:04:50.2]} 7. Be2 {[%clk 0:04:22.6]} 7... Nf6 {[%clk 0:04:48.7]} 8. O-O {[%clk
0:04:18.2]} 8... O-O {[%clk 0:04:48]} 9. Bg5 {[%clk 0:04:10.1]} 9... Nbd7 {[%clk
0:04:46.3]} 10. Qd2 {[%clk 0:04:07.2]} 10... Qb6 {[%clk 0:04:43.5]} 11. h4
{[%clk 0:04:01.9]} 11... Ne4 {[%clk 0:04:38.3]} 12. Qd3 {[%clk 0:03:40.8]} 12...
Ndf6 {[%clk 0:04:32.4]} 13. Ne5 {[%clk 0:03:07.9]} 13... Bf5 {[%clk 0:04:21]}
14. Nxe4 {[%clk 0:02:50.7]} 14... Nxe4 {[%clk 0:04:18.5]} 15. Qb3 {[%clk
0:02:11.8]} 15... Qxd4 {[%clk 0:04:10.6]} 16. Nf3 {[%clk 0:01:59.8]} 16... Qxb2
{[%clk 0:03:52.5]} 17. Qxb2 {[%clk 0:01:53.6]} 17... Bxb2 {[%clk 0:03:49.6]} 18.
Rab1 {[%clk 0:01:50.6]} 18... Bg7 {[%clk 0:03:45.9]} 19. Rxb7 {[%clk 0:01:47.5]}
19... Rfe8 {[%clk 0:03:29.9]} 20. Bd3 {[%clk 0:01:24.6]} 20... Nc5 {[%clk
0:03:23.3]} 21. Rc7 {[%clk 0:01:10.3]} 21... Nxd3 {[%clk 0:03:21.6]} 22. cxd3
{[%clk 0:01:06.4]} 22... Bxd3 {[%clk 0:03:20.7]} 23. Rd1 {[%clk 0:01:01.6]}
23... Be2 {[%clk 0:03:18.4]} 24. Rd2 {[%clk 0:00:55.3]} 24... Bxf3 {[%clk
0:03:13.6]} 25. gxf3 {[%clk 0:00:52.7]} 25... Re6 {[%clk 0:03:10.6]} 26. Rc2
{[%clk 0:00:44.8]} 26... h6 {[%clk 0:02:52.4]} 27. Be3 {[%clk 0:00:38.5]} 27...
d4 {[%clk 0:02:49.4]} 28. Bd2 {[%clk 0:00:18.3]} 28... d3 {[%clk 0:02:41.4]} 29.
Rc1 {[%clk 0:00:13.6]} 29... Re2 {[%clk 0:02:37.5]} 30. Be3 {[%clk 0:00:07.1]}
30... d2 {[%clk 0:02:33.8]} 31. Bxd2 {[%clk 0:00:01.7]} 31... Rxd2 {[%clk
0:02:32.7]} 0-1

[Event "Live Chess"]
[Site "Chess.com"]
[Date "2023.05.21"]
[Round "-"]
[White "1600x"]
[Black "Tushinskiy"]
[Result "1-0"]
[WhiteElo "1826"]
[BlackElo "2169"]
[TimeControl "300"]
[EndTime "16:07:55 PDT"]
[Termination "1600x won by resignation"]

1. e4 {[%clk 0:04:56.6]} 1... e5 {[%clk 0:04:57.9]} 2. Nf3 {[%clk 0:04:48]} 2...
d6 {[%clk 0:04:57.8]} 3. Nc3 {[%clk 0:04:45.6]} 3... Bg4 {[%clk 0:04:57]} 4. d4
{[%clk 0:04:42.8]} 4... Nd7 {[%clk 0:04:56.2]} 5. d5 {[%clk 0:04:41.3]} 5...
Ngf6 {[%clk 0:04:55]} 6. Qe2 {[%clk 0:04:39.4]} 6... Be7 {[%clk 0:04:54.2]} 7.
Qb5 {[%clk 0:04:36.4]} 7... Rb8 {[%clk 0:04:49.7]} 8. Qd3 {[%clk 0:04:33.9]}
8... O-O {[%clk 0:04:47.7]} 9. h3 {[%clk 0:04:11.2]} 9... Bh5 {[%clk 0:04:46.2]}
10. Qe2 {[%clk 0:04:08.6]} 10... c6 {[%clk 0:04:41.4]} 11. g4 {[%clk 0:04:05.7]}
11... Bg6 {[%clk 0:04:40]} 12. dxc6 {[%clk 0:04:01.4]} 12... bxc6 {[%clk
0:04:38.6]} 13. g5 {[%clk 0:03:59.8]} 13... Nh5 {[%clk 0:04:37.3]} 14. a3 {[%clk
0:03:57.2]} 14... Nc5 {[%clk 0:04:36.4]} 15. h4 {[%clk 0:03:54]} 15... Ne6
{[%clk 0:04:35.2]} 16. Qc4 {[%clk 0:03:51.6]} 16... Rc8 {[%clk 0:04:19.3]} 17.
Bh3 {[%clk 0:03:49.5]} 17... Qd7 {[%clk 0:04:14.5]} 18. Be3 {[%clk 0:03:43.4]}
18... Rfd8 {[%clk 0:04:09.8]} 19. O-O-O {[%clk 0:03:41.5]} 19... d5 {[%clk
0:04:04.2]} 20. Nxe5 {[%clk 0:03:33.9]} 20... Qb7 {[%clk 0:03:59.4]} 21. Qb3
{[%clk 0:03:29]} 21... Qxb3 {[%clk 0:03:56.5]} 22. cxb3 {[%clk 0:03:27.4]} 22...
Nhf4 {[%clk 0:03:38.8]} 23. Bxf4 {[%clk 0:03:23.5]} 23... Nxf4 {[%clk
0:03:37.8]} 24. Bxc8 {[%clk 0:03:14.8]} 24... Rxc8 {[%clk 0:03:36.1]} 25. Nxg6
{[%clk 0:03:13.2]} 25... hxg6 {[%clk 0:03:34.5]} 26. b4 {[%clk 0:03:10.2]} 26...
Rd8 {[%clk 0:03:27.9]} 27. exd5 {[%clk 0:03:05.4]} 27... cxd5 {[%clk 0:03:27.8]}
28. Nb5 {[%clk 0:03:02.2]} 28... a6 {[%clk 0:03:20.9]} 29. Nd4 {[%clk
0:02:46.2]} 29... Bf8 {[%clk 0:03:19.4]} 30. Kd2 {[%clk 0:02:23.8]} 30... f6
{[%clk 0:03:13.6]} 31. Rc1 {[%clk 0:02:20.8]} 31... Bd6 {[%clk 0:03:00.8]} 32.
Nf3 {[%clk 0:02:12.5]} 32... Nh5 {[%clk 0:02:53.9]} 33. Rc6 {[%clk 0:02:09.2]}
33... d4 {[%clk 0:02:50.5]} 34. Rd1 {[%clk 0:02:06.7]} 34... Nf4 {[%clk
0:02:42.1]} 35. Rxa6 {[%clk 0:02:05]} 35... f5 {[%clk 0:02:29.2]} 36. Rc6 {[%clk
0:02:02.2]} 36... Kh7 {[%clk 0:02:27.2]} 37. b5 {[%clk 0:02:00.7]} 37... d3
{[%clk 0:02:16.2]} 38. Kc3 {[%clk 0:01:58.7]} 38... Bb8 {[%clk 0:02:09]} 39. a4
{[%clk 0:01:56.7]} 39... Ne2+ {[%clk 0:02:08]} 40. Kb4 {[%clk 0:01:55.1]} 40...
Bd6+ {[%clk 0:02:02]} 41. Kb3 {[%clk 0:01:53.4]} 41... Bf4 {[%clk 0:01:55.4]}
42. b6 {[%clk 0:01:51.3]} 42... d2 {[%clk 0:01:51.8]} 43. Kc2 {[%clk 0:01:49.2]}
43... Ra8 {[%clk 0:01:35.7]} 44. Ra1 {[%clk 0:01:36.2]} 44... Rd8 {[%clk
0:01:22.4]} 45. Rc4 {[%clk 0:01:30.3]} 45... Rb8 {[%clk 0:01:05.9]} 46. a5
{[%clk 0:01:28]} 46... Rb7 {[%clk 0:00:58.9]} 47. a6 {[%clk 0:01:26.6]} 47...
Rxb6 {[%clk 0:00:58.3]} 48. a7 {[%clk 0:01:23.4]} 48... Nc1 {[%clk 0:00:55.3]}
49. a8=Q {[%clk 0:01:21.3]} 49... Rxb2+ {[%clk 0:00:53.6]} 50. Kxb2 {[%clk
0:01:19.7]} 50... d1=Q {[%clk 0:00:52.4]} 51. Raxc1 {[%clk 0:01:17.9]} 51...
Bxc1+ {[%clk 0:00:47.4]} 52. Rxc1 {[%clk 0:01:16.3]} 52... Qxf3 {[%clk 0:00:46]}
53. Qxf3 {[%clk 0:01:14.3]} 53... f4 {[%clk 0:00:44.2]} 54. Qxf4 {[%clk
0:01:13]} 54... Kg8 {[%clk 0:00:42.6]} 55. Rc7 {[%clk 0:01:11]} 55... Kh7 {[%clk
0:00:42]} 56. Qf7 {[%clk 0:01:09.2]} 1-0

[Event "Live Chess"]
[Site "Chess.com"]
[Date "2023.05.21"]
[Round "-"]
[White "mikkyb4"]
[Black "xx_blindpuffin_xx"]
[Result "0-1"]
[WhiteElo "1031"]
[BlackElo "2208"]
[TimeControl "300"]
[EndTime "16:08:02 PDT"]
[Termination "xx_blindpuffin_xx won by resignation"]

1. e4 {[%clk 0:04:57.6]} 1... e6 {[%clk 0:04:55.5]} 2. b3 {[%clk 0:04:55.2]}
2... d5 {[%clk 0:04:51.3]} 3. Bb2 {[%clk 0:04:53.9]} 3... dxe4 {[%clk
0:04:50.3]} 4. Nc3 {[%clk 0:04:53]} 4... Nf6 {[%clk 0:04:49.1]} 5. Qe2 {[%clk
0:04:52.3]} 5... Nc6 {[%clk 0:04:47.4]} 6. g4 {[%clk 0:04:43.5]} 6... Nd4 {[%clk
0:04:44.5]} 7. Qc4 {[%clk 0:03:59.6]} 7... Nxc2+ {[%clk 0:04:42.5]} 8. Kd1
{[%clk 0:03:56.6]} 8... Nxa1 {[%clk 0:04:41.7]} 9. Nxe4 {[%clk 0:03:49.3]} 9...
Nxe4 {[%clk 0:04:39.9]} 10. Qxe4 {[%clk 0:03:47.7]} 10... Nxb3 {[%clk
0:04:26.1]} 11. axb3 {[%clk 0:03:41.9]} 11... Qd5 {[%clk 0:04:22.6]} 12. Qxd5
{[%clk 0:03:37.5]} 12... exd5 {[%clk 0:04:22.5]} 13. Bd3 {[%clk 0:03:36.2]} 0-1